bitfinex/quotes_ETHUSD_20250702
["timestamp","ask_amount","ask_price","bid_price","bid_amount"]
[1751467167771,0.01,2467.7,2467.6,2.3484]
[1751467167999,0.01,2467.7,2467.6,9.1264]
[1751467170065,0.01,2467.7,2467.6,0.2224]
[1751467170271,0.01,2467.7,2467.6,9.1254]
[1751467170488,1.30982174,2467.7,2467.6,0.02]
[1751467170691,25.11969071,2467.7,2467.6,0.02]
[1751467171011,25.11969071,2467.7,2467.5,0.02]
[1751467171012,11.5012,2467.6,2467.5,0.02]
[1751467171219,11.88052174,2467.6,2467.0,9.735]
[1751467171504,1.1327,2467.0,2466.9,8.902]
[1751467171796,1.30962174,2467.0,2466.9,8.902]
[1751467174266,0.9303,2467.0,2466.9,8.902]
[1751467174862,0.9303,2467.0,2466.7,0.2224]
[1751467175068,0.9303,2467.0,2466.8,8.903]
[1751467175408,1.29299518,2467.4,2466.9,1.1554]
[1751467175704,0.9141,2467.4,2467.0,8.894]
[1751467175867,0.37889518,2467.3,2467.0,8.894]
[1751467176061,0.37889518,2467.3,2467.0,9.0964]
[1751467176668,0.37889518,2467.3,2467.0,9.80464]
[1751467176868,0.37889518,2467.5,2467.2,0.2024]
[1751467177175,0.37889518,2467.4,2467.3,6.775]
[1751467177484,0.37889518,2467.5,2467.2,2.3204]
[1751467177688,0.37889518,2467.4,2467.3,6.775]
[1751467177883,0.37889518,2467.5,2466.9,0.01]
[1751467178091,0.58129518,2467.4,2467.2,6.775]
[1751467178279,0.2024,2467.4,2467.2,6.775]
[1751467178481,0.58118539,2467.4,2467.2,6.775]
[1751467178671,0.2024,2467.4,2467.2,6.775]
[1751467178870,0.58118539,2467.4,2467.2,6.775]
[1751467179094,0.2024,2467.4,2467.2,6.775]
[1751467179282,0.58118539,2467.4,2467.2,6.775]
[1751467179483,0.2024,2467.4,2467.2,6.775]
[1751467179682,0.58118539,2467.4,2467.2,6.775]
[1751467179883,0.2024,2467.4,2467.2,6.775]
[1751467180520,0.37878539,2467.6,2467.2,7.68454]
[1751467180674,0.01,2467.7,2467.4,0.2024]
[1751467180991,0.38878539,2467.7,2467.4,6.9764]
[1751467182074,0.01,2467.7,2467.4,6.9764]
[1751467182971,0.01,2467.7,2467.6,0.2024]
[1751467185323,0.01,2467.7,2467.6,2.65258428]
[1751467186207,0.01,2467.7,2467.6,11.54258428]
[1751467186406,0.01,2467.7,2467.6,10.0344]
[1751467188587,0.01,2467.7,2467.6,14.08692066]
[1751467190126,0.01,2467.7,2467.6,14.08492066]
[1751467190616,0.01,2467.7,2467.6,0.2024]
[1751467190817,0.01,2467.7,2467.6,9.0904]
[1751467192421,0.01,2467.7,2467.6,15.85965494]
[1751467196026,0.01,2467.7,2467.6,6.97165494]
[1751467196326,0.01,2467.7,2467.6,15.85665494]
[1751467197620,0.01,2467.7,2467.6,11.80413428]
[1751467197913,0.01,2467.7,2467.6,14.03842066]
[1751467201903,0.01,2467.7,2467.6,9.9839]
[1751467202099,0.01,2467.7,2467.6,14.03542066]
[1751467202306,0.01,2467.7,2467.6,9.9829]
[1751467202836,0.01,2467.7,2467.6,14.03542066]
[1751467203218,0.01,2467.7,2467.6,15.84522703]
[1751467205719,0.01,2467.7,2467.6,14.02942066]
[1751467210749,0.01,2467.7,2467.6,9.0754]
[1751467212349,0.01,2467.7,2467.6,13.12792066]
[1751467212766,0.01,2467.7,2467.6,9.0754]
[1751467213055,0.01,2467.7,2467.6,13.12792066]
[1751467213752,0.01,2467.7,2467.6,35.07279086]
[1751467214629,0.01,2467.7,2467.6,25.8684008]
[1751467216041,0.01,2467.7,2467.6,35.07279086]
[1751467216442,0.02,2468.0,2467.9,4.05202804]
[1751467216754,0.01,2468.1,2468.0,5.55076385]
[1751467217054,0.01,2468.1,2468.0,8.45784127]
[1751467217355,0.01,2468.1,2468.0,17.32884127]
[1751467219120,0.01,2468.1,2468.0,17.32684127]
[1751467220828,0.01,2468.1,2468.0,16.37794127]
[1751467223260,0.01,2468.1,2468.0,16.37494127]
[1751467224751,0.01,2468.1,2467.9,0.2024]
[1751467224954,0.01,2468.1,2468.0,8.866]
[1751467225153,0.01,2468.1,2468.0,12.91786385]
[1751467225456,0.01,2468.1,2468.0,22.91786385]
[1751467228155,0.01,2468.1,2468.0,23.89626385]
[1751467228330,0.01,2468.1,2468.0,27.63175733]
[1751467232860,0.01,2468.1,2468.0,36.83614739]
[1751467233162,0.01,2468.1,2468.0,27.97014739]
[1751467233348,0.01,2468.1,2468.0,36.83314739]
[1751467235460,0.01,2468.1,2468.0,37.38314739]
[1751467238573,0.01,2468.7,2468.6,4.05087904]
[1751467238755,0.01,2468.7,2468.6,14.00850727]
[1751467238950,0.01,2468.7,2468.6,24.00850727]
[1751467240372,0.01,2469.1,2469.0,4.99192276]
[1751467240673,0.01,2469.1,2469.0,31.49431282]
[1751467240975,0.01,2469.1,2469.0,31.69671282]
[1751467241194,0.01,2469.1,2469.0,35.27141905]
[1751467245383,0.01,2469.1,2469.0,28.52341905]
[1751467245571,0.01,2469.1,2469.0,37.37241905]
[1751467245962,0.01,2469.1,2469.0,28.52341905]
[1751467246189,0.01,2469.1,2469.0,37.37141905]
[1751467246880,0.01,2469.1,2469.0,28.52341905]
[1751467247081,0.01,2469.1,2469.0,22.62410623]
[1751467247283,0.01,2469.1,2469.0,2.3064]
[1751467247593,0.01,2469.1,2469.0,9.0494]
[1751467247796,0.9229,2469.1,2468.4,9.734]
[1751467247963,9.20439006,2469.0,2468.6,0.2024]
[1751467248153,0.9489,2468.8,2468.7,6.743]
[1751467248354,0.9489,2468.8,2468.6,0.2024]
[1751467248555,1.1513,2468.8,2468.7,6.743]
[1751467251386,0.9489,2468.8,2468.7,6.743]
[1751467254156,0.9489,2468.8,2468.7,6.742]
[1751467254588,0.9489,2468.8,2468.5,0.2024]
[1751467254909,0.2024,2468.7,2468.5,2.104]
[1751467255077,0.2024,2468.7,2468.6,6.742]
[1751467255573,1.0942,2468.7,2468.6,6.742]
[1751467257470,1.0942,2468.7,2468.6,6.741]
[1751467258059,1.0942,2468.7,2468.2,0.2024]
[1751467258258,1.0942,2468.7,2468.3,8.844]
[1751467258671,1.0942,2468.7,2468.3,2.104]
[1751467258969,0.01,2469.1,2468.6,0.9211]
[1751467259167,0.01,2469.1,2469.0,14.97132276]
[1751467259370,0.01,2470.1,2469.2,4.0498762]
[1751467259580,0.01,2470.1,2469.4,4.04953607]
[1751467259888,0.01,2470.1,2469.4,4.04951731]
[1751467260294,0.01,2470.1,2469.4,4.04949919]
[1751467260588,0.01,2470.1,2469.6,4.04922091]
[1751467260781,0.01,2470.1,2469.7,6.74]
[1751467261583,0.01,2470.1,2469.8,4.04889068]
[1751467261789,0.01,2470.1,2469.7,6.74]
[1751467262188,0.01,2470.1,2469.7,10.78906854]
[1751467262867,0.01,2470.1,2469.7,6.74]
[1751467265505,0.01,2470.1,2469.7,10.78904976]
[1751467265802,0.01,2470.1,2469.7,8.34586118]
[1751467266393,0.01,2470.1,2469.3,2.098]
[1751467266596,0.9025,2470.0,2469.4,6.738]
[1751467266790,0.9025,2470.0,2469.3,2.098]
[1751467266994,0.9025,2470.0,2469.4,6.738]
[1751467268303,0.9025,2470.0,2469.1,14.05005392]
[1751467268493,0.9025,2470.0,2469.2,11.61812555]
[1751467269107,0.2024,2469.9,2469.5,0.2024]
[1751467269295,0.2024,2469.9,2469.6,6.737]
[1751467271695,0.9025,2470.0,2469.7,4.04895449]
[1751467271898,0.01,2470.0,2469.8,0.2024]
[1751467272204,0.01,2470.0,2469.9,10.0]
[1751467273308,0.01,2470.0,2469.9,4.04874691]
[1751467273810,0.01,2470.0,2469.8,6.3500852]
[1751467273997,0.01,2470.0,2469.8,2.30124255]
[1751467274197,0.01,2470.0,2469.8,6.35014873]
[1751467274398,0.01,2470.0,2469.9,1.63501487]
[1751467274597,0.01,2470.0,2469.9,5.68376178]
[1751467274795,0.01,2470.0,2469.9,1.63501487]
[1751467275494,0.01,2470.0,2469.9,5.68376178]
[1751467275811,0.01,2470.0,2469.9,1.63501487]
[1751467276110,0.01,2470.0,2469.9,5.68376178]
[1751467276512,0.01,2470.0,2469.9,1.63501487]
[1751467277715,0.01,2470.0,2469.9,6.734]
[1751467279583,0.01,2470.0,2469.8,0.2024]
[1751467279917,0.9442,2470.0,2469.9,6.734]
[1751467280326,0.9442,2470.0,2469.3,8.79970669]
[1751467280614,0.9442,2470.0,2469.6,0.2024]
[1751467281114,0.9442,2470.0,2469.7,6.733]
[1751467283618,0.9442,2470.0,2469.6,0.2024]
[1751467283826,0.9442,2470.0,2469.7,6.733]
[1751467284603,0.9442,2470.0,2469.6,0.2024]
[1751467284914,0.9442,2470.0,2469.3,2.3004]
[1751467284915,0.2024,2469.8,2469.3,2.3004]
[1751467285217,0.9701,2469.6,2469.4,6.733]
[1751467286511,0.9701,2469.6,2469.3,2.098]
[1751467286688,0.9701,2469.6,2469.3,8.831]
[1751467287019,0.2024,2469.5,2469.3,6.733]
[1751467287226,0.9401,2469.4,2469.3,6.733]
[1751467287429,1.1425,2469.4,2469.1,6.733]
[1751467287587,0.9401,2469.4,2469.1,6.733]
[1751467287996,1.31793774,2469.4,2469.1,6.733]
[1751467288301,0.37783774,2469.3,2469.1,6.733]
[1751467288618,0.37783774,2469.3,2469.1,12.09336373]
[1751467288824,0.22890256,2469.5,2469.2,0.2024]
[1751467289023,0.9212,2469.6,2469.2,0.2024]
[1751467291611,0.01,2470.0,2469.6,4.049217]
[1751467291813,0.01,2470.0,2469.8,0.2024]
[1751467292810,0.01,2470.0,2469.8,4.04883798]
[1751467293014,0.01,2470.0,2469.9,0.2024]
[1751467297529,0.01,2470.0,2469.9,6.9334]
[1751467301842,0.01,2470.0,2469.9,10.98214691]
[1751467302038,0.01,2470.0,2469.9,12.3818558]
[1751467302608,0.01,2470.0,2469.9,13.2960558]
[1751467305250,0.01,2470.0,2469.9,43.2960558]
[1751467305754,0.01,2470.0,2469.9,35.1688498]
[1751467306353,1.11816499,2470.9,2470.3,4.04793328]
[1751467306554,0.9296,2470.9,2470.4,11.18171023]
[1751467306928,0.9296,2470.9,2470.4,7.13379333]
[1751467307127,0.01,2470.0,2469.9,12.31390889]
[1751467307322,0.01,2470.0,2469.9,25.1846558]
[1751467308237,0.01,2470.0,2469.9,51.3228278]
[1751467308640,0.01,2470.0,2469.9,30.5703538]
[1751467309560,0.01,2470.0,2469.9,55.1846558]
[1751467310059,0.9034,2471.6,2471.2,4.04660431]
[1751467310359,0.9034,2471.6,2470.8,10.0]
[1751467310560,0.9034,2471.6,2470.9,8.821]
[1751467311138,0.9034,2471.6,2470.9,4.04700322]
[1751467311341,0.9034,2471.6,2471.0,8.821]
[1751467311762,0.9034,2471.6,2471.0,12.86793009]
[1751467312129,0.9034,2471.6,2471.0,12.86794435]
[1751467312329,0.9034,2471.6,2471.0,11.42075546]
[1751467312525,0.9034,2471.6,2471.0,6.64669959]
[1751467312732,0.9034,2471.6,2471.0,4.04694413]
[1751467313059,0.9034,2471.6,2471.1,12.86674783]
[1751467313261,0.9034,2471.6,2471.1,12.8666884]
[1751467313832,0.9034,2471.6,2471.1,8.82]
[1751467314032,0.9034,2471.6,2471.1,4.04677385]
[1751467314252,0.9034,2471.6,2471.2,8.82]
[1751467314856,0.9034,2471.6,2471.3,8.82]
[1751467315057,0.9034,2471.6,2471.0,0.29916122]
[1751467315369,0.9034,2471.6,2471.4,2.094]
[1751467315538,0.9034,2471.6,2471.5,6.726]
[1751467316567,0.9676,2472.2,2471.5,6.726]
[1751467316757,1.1692,2472.2,2471.7,0.2016]
[1751467316959,1.1692,2472.2,2471.8,6.725]
[1751467317155,0.9676,2472.2,2471.8,6.725]
[1751467317360,0.9676,2472.2,2471.9,0.2016]
[1751467317561,0.9676,2472.2,2472.0,2.094]
[1751467317762,0.9676,2472.2,2472.1,6.725]
[1751467318476,0.9676,2472.2,2472.1,8.818]
[1751467318864,0.9676,2472.2,2471.9,0.2016]
[1751467319059,0.9676,2472.2,2472.0,8.818]
[1751467319370,0.2016,2472.1,2472.0,8.818]
[1751467319570,0.9676,2472.2,2472.0,8.818]
[1751467319948,0.3763539,2472.7,2472.0,8.818]
[1751467320177,0.9326,2472.6,2472.0,8.818]
[1751467320339,0.9326,2472.6,2472.0,10.6025105]
[1751467320545,0.9326,2473.0,2472.3,4.044732]
[1751467320786,0.9326,2473.0,2472.4,6.724]
[1751467321297,0.9326,2473.0,2472.5,8.817]
[1751467322082,0.9326,2473.0,2472.5,9.746]
[1751467322389,0.9326,2473.0,2472.6,8.816]
[1751467322586,0.9326,2473.0,2472.5,0.30810728]
[1751467322787,0.9326,2473.0,2472.3,0.929]
[1751467322943,0.9326,2473.0,2472.6,8.816]
[1751467324266,0.2200244,2473.1,2472.6,10.10206289]
[1751467324967,0.2200244,2473.1,2472.7,8.815]
[1751467325989,0.2200244,2473.1,2472.8,8.815]
[1751467326553,0.2200244,2473.1,2472.9,8.815]
[1751467326758,0.2200244,2473.1,2473.0,2.093]
[1751467327369,0.2200244,2473.1,2472.3,0.929]
[1751467327568,0.9401,2473.0,2472.4,18.811]
[1751467327774,0.9401,2473.0,2472.3,2.33192023]
[1751467327965,0.9401,2473.0,2472.4,8.811]
[1751467329896,0.9401,2473.0,2472.3,0.31034147]
[1751467330066,0.2016,2472.9,2472.5,2.2916]
[1751467332974,0.01,2473.0,2472.6,0.913]
[1751467333179,0.01,2473.0,2472.9,0.2016]
[1751467333379,0.01,2473.0,2472.9,6.9216]
[1751467336276,0.01,2473.0,2472.9,8.809]
[1751467336903,0.01,2473.0,2472.8,0.2016]
[1751467337202,0.01,2473.0,2472.9,8.809]
[1751467341601,0.01,2473.0,2472.9,9.0106]
[1751467341779,0.01,2473.0,2472.9,9.91166]
[1751467341981,0.01,2473.0,2472.9,9.0106]
[1751467343109,0.01,2473.0,2472.9,8.807]
[1751467343411,0.01,2473.0,2472.9,9.0086]
[1751467344318,0.01,2473.0,2472.9,13.99413517]
[1751467344489,0.01,2473.0,2472.9,23.99413517]
[1751467344691,0.01,2473.0,2472.9,26.79794597]
[1751467344894,0.01,2473.0,2472.9,27.34794597]
[1751467346013,0.01,2473.0,2472.9,26.79794597]
[1751467347621,0.01,2473.0,2472.9,27.34794597]
[1751467347929,0.01,2473.0,2472.9,26.79794597]
[1751467348823,0.01,2473.0,2472.9,27.34794597]
[1751467349588,0.01,2473.0,2472.9,40.73130297]
[1751467349989,0.9681,2474.2,2473.5,4.0427155]
[1751467350198,0.9681,2474.2,2473.9,0.2016]
[1751467350432,0.9681,2474.2,2474.0,6.716]
[1751467352210,0.8982,2474.5,2474.0,6.716]
[1751467352399,30.0,2475.0,2474.0,6.716]
[1751467352400,0.2016,2474.4,2474.0,0.2016]
[1751467352600,0.8982,2474.3,2474.1,8.804]
[1751467353108,1.0998,2474.3,2473.8,0.2016]
[1751467353432,10.0,2474.3,2473.9,8.804]
[1751467353623,0.2016,2473.9,2473.8,2.089]
[1751467353832,1.1011,2473.9,2473.8,8.804]
[1751467354019,1.1011,2473.9,2473.5,9.9176]
[1751467354020,1.1011,2473.9,2473.6,2.089]
[1751467354226,0.2016,2473.7,2473.6,8.804]
[1751467354744,0.8995,2473.9,2473.6,8.804]
[1751467354904,0.2016,2473.8,2473.6,8.804]
[1751467355626,0.9659,2473.7,2473.6,2.089]
[1751467355821,0.9659,2473.7,2473.6,8.803]
[1751467356365,0.01,2474.2,2473.6,9.0046]
[1751467356366,0.2016,2474.1,2473.6,9.0046]
[1751467356507,1.1675,2474.1,2473.6,9.0046]
[1751467357435,1.1675,2474.1,2473.6,0.2016]
[1751467357639,0.2016,2473.9,2473.7,8.802]
[1751467358044,0.9659,2474.1,2473.7,8.802]
[1751467358253,0.9659,2474.1,2473.7,9.0036]
[1751467359142,0.9659,2474.1,2473.8,8.802]
[1751467359342,2.08365,2474.1,2473.9,6.714]
[1751467359664,2.08365,2474.1,2473.7,0.2016]
[1751467359837,2.08365,2474.1,2473.9,6.714]
[1751467360935,0.9366,2474.0,2473.9,6.714]
[1751467361328,1.143035,2474.0,2473.9,6.714]
[1751467361643,0.9366,2474.0,2473.9,6.714]
[1751467363249,1.1382,2474.0,2473.9,6.714]
[1751467364849,0.01,2474.2,2473.9,6.714]
[1751467365242,0.01,2474.2,2474.1,0.2016]
[1751467366047,0.01,2474.2,2474.0,0.2016]
[1751467367519,0.01,2474.2,2474.0,1.10196]
[1751467367735,0.01,2474.2,2474.0,0.90036]
[1751467368019,0.01,2474.2,2474.1,0.2016]
[1751467368957,0.01,2474.2,2474.1,1.1174]
[1751467371360,0.01,2474.2,2474.1,9.0006]
[1751467371657,0.01,2474.2,2474.1,8.799]
[1751467372620,0.01,2474.2,2474.0,0.2016]
[1751467372826,0.9585,2474.2,2474.0,0.2016]
[1751467373152,1.1601,2474.2,2474.0,8.799]
[1751467373747,0.01,2474.2,2474.0,9.6789]
[1751467374050,0.01,2474.2,2474.0,9.8805]
[1751467374752,0.01,2474.2,2474.0,8.799]
[1751467375436,0.1016,2474.3,2474.0,8.799]
[1751467375940,0.9141,2474.4,2474.0,8.799]
[1751467376141,0.9141,2474.4,2474.0,9.0006]
[1751467376367,0.9808,2474.6,2474.0,8.799]
[1751467376521,1.1824,2474.6,2474.1,1.57631536]
[1751467377726,0.2016,2474.5,2474.2,8.798]
[1751467378128,0.2016,2474.5,2474.3,8.798]
[1751467378738,0.9101,2474.5,2474.2,8.798]
[1751467378937,0.2016,2474.3,2474.2,2.087]
[1751467379559,1.1117,2474.3,2474.2,2.087]
[1751467379764,1.1117,2474.3,2474.1,8.798]
[1751467380061,0.2016,2474.2,2474.1,8.798]
[1751467380263,0.2016,2474.2,2474.1,2.087]
[1751467381560,0.2016,2474.2,2473.9,8.798]
[1751467381945,0.2016,2474.2,2473.9,9.69796]
[1751467382267,0.2016,2474.2,2473.9,8.798]
[1751467383762,13.2484846,2474.0,2473.9,2.087]
[1751467384266,0.9822,2474.1,2473.9,2.087]
[1751467384859,0.37843041,2474.0,2473.9,2.087]
[1751467385166,0.2016,2474.2,2473.7,0.2016]
[1751467385167,0.37843041,2474.1,2473.7,0.2016]
[1751467385351,0.58003041,2474.0,2473.8,8.798]
[1751467385661,1.33853041,2473.9,2473.8,6.711]
[1751467385864,0.9601,2473.9,2473.5,9.716]
[1751467386049,0.2016,2473.7,2473.6,8.798]
[1751467387985,0.2016,2473.7,2473.5,18.513]
[1751467388584,0.58006338,2473.7,2473.5,18.513]
[1751467388887,0.2016,2473.7,2473.5,18.513]
[1751467389053,0.58001678,2473.7,2473.5,11.802]
[1751467389248,0.9692,2473.6,2473.5,11.802]
[1751467389581,1.1708,2473.6,2473.5,18.513]
[1751467391350,0.2016,2473.6,2473.5,18.513]
[1751467392762,0.2016,2473.6,2473.5,9.716]
[1751467392967,2.06711678,2473.6,2473.3,2.087]
[1751467393281,0.58512846,2473.5,2473.4,6.711]
[1751467394301,0.37841678,2473.5,2473.4,6.711]
[1751467397374,0.2016,2473.5,2473.4,6.711]
[1751467399510,0.9695,2473.3,2473.0,2.107]
[1751467399729,10.13540166,2473.1,2473.0,2.107]
[1751467400480,10.13540166,2473.1,2473.0,0.02]
[1751467405079,1.15195,2473.2,2473.0,0.02]
[1751467405080,0.2016,2473.2,2473.0,0.02]
[1751467406689,0.2016,2473.2,2473.0,6.731]
[1751467407210,9.16680166,2473.1,2473.0,6.731]
[1751467407620,10.11470166,2473.1,2473.0,0.02]
[1751467407801,11.12617183,2473.1,2473.0,0.02]
[1751467408410,11.67617183,2473.1,2473.0,0.02]
[1751467409197,21.67617183,2473.1,2473.0,0.02]
[1751467409399,15.75947165,2473.0,2472.9,0.02]
[1751467409581,10.13100166,2472.5,2472.4,8.798]
[1751467410176,10.13100166,2472.5,2472.1,2.087]
[1751467410177,0.2016,2472.4,2472.1,2.087]
[1751467410396,9.16680166,2472.2,2472.1,2.087]
[1751467412511,0.2016,2472.1,2472.0,0.02]
[1751467420331,0.9642,2472.5,2472.0,0.9464]
[1751467420513,10.9246,2472.7,2472.0,1.92104]
[1751467421024,0.9246,2472.9,2472.0,5.96632276]
[1751467421529,0.9246,2472.9,2472.1,4.97147493]
[1751467421700,10.0,2473.0,2472.2,0.9264]
[1751467422892,10.0,2473.0,2472.2,4.97129792]
[1751467423203,10.0,2473.0,2472.3,0.49712979]
[1751467423416,10.0,2473.0,2472.4,6.711]
[1751467423612,10.0,2473.0,2472.5,2.086]
[1751467423931,11.93607017,2473.1,2472.5,2.086]
[1751467424113,9.16680166,2472.9,2472.5,2.086]
[1751467424522,11.27708884,2472.9,2472.5,2.086]
[1751467425739,11.93607017,2473.1,2472.6,0.9404]
[1751467426034,0.9246,2473.1,2472.6,0.9404]
[1751467426345,17.08680166,2473.2,2472.6,0.9404]
[1751467427858,0.9548,2474.0,2473.1,0.9222]
[1751467428145,0.9548,2474.0,2473.2,8.797]
[1751467428146,9.16680166,2473.7,2473.2,8.797]
[1751467428441,0.91668017,2473.6,2473.2,8.797]
[1751467429103,9.16680166,2473.9,2473.2,8.797]
[1751467429839,0.55,2473.9,2473.2,8.797]
[1751467430544,0.2016,2473.6,2473.2,8.797]
[1751467430704,0.2016,2473.6,2473.3,0.9065]
[1751467430909,0.2016,2473.8,2473.4,0.2016]
[1751467433843,0.9884,2474.3,2473.5,0.9065]
[1751467434143,0.9884,2474.3,2473.6,0.2016]
[1751467434144,0.2016,2474.1,2473.6,0.2016]
[1751467436036,0.2016,2474.1,2473.7,0.9837]
[1751467436244,0.2016,2474.1,2473.8,2.085]
[1751467441552,1.0921,2474.1,2473.6,0.2016]
[1751467441744,0.8905,2474.1,2473.7,2.085]
[1751467441945,0.2016,2473.9,2473.7,2.085]
[1751467442925,0.55,2474.0,2473.7,2.085]
[1751467443126,0.2016,2473.7,2473.6,2.085]
[1751467443370,0.9024,2473.8,2473.6,2.085]
[1751467447226,0.55,2473.7,2473.1,0.9697]
[1751467447427,0.9439,2473.3,2473.0,0.2016]
[1751467447626,0.9439,2473.3,2472.9,2.105]
[1751467447833,0.2016,2473.2,2472.9,2.105]
[1751467448072,0.9439,2473.3,2472.9,2.105]
[1751467448272,0.2016,2473.0,2472.9,2.105]
[1751467448453,0.2016,2473.0,2472.9,0.02]
[1751467449177,0.9439,2473.6,2472.9,0.02]
[1751467449335,2.40769998,2473.9,2473.1,0.9232]
[1751467449539,0.2016,2473.6,2473.1,7.8308]
[1751467450776,9.36571321,2473.6,2473.1,7.8308]
[1751467451137,0.9221,2473.5,2473.1,6.706]
[1751467451362,0.2016,2473.4,2473.1,6.706]
[1751467452149,9.16411321,2473.2,2473.0,2.083]
[1751467452465,0.2016,2473.1,2473.0,2.083]
[1751467453235,0.2016,2473.1,2472.9,2.103]
[1751467454144,0.9316,2473.1,2472.9,2.103]
[1751467454735,10.0,2473.5,2472.9,2.103]
[1751467454736,0.55,2473.4,2472.9,2.103]
[1751467454970,0.2016,2473.0,2472.9,2.103]
[1751467456976,1.1134,2473.0,2472.9,0.02]
[1751467457175,10.55,2472.4,2472.0,0.02]
[1751467457396,1.64192669,2472.3,2472.0,0.02]
[1751467457546,0.55,2472.2,2472.0,0.02]
[1751467458175,14.65620815,2472.1,2472.0,0.02]
[1751467458381,0.9031,2472.1,2472.0,0.02]
[1751467458677,18.70135195,2472.1,2472.0,0.02]
[1751467458889,0.55,2471.6,2471.5,0.02]
[1751467459246,14.15450815,2471.7,2471.5,0.02]
[1751467459247,0.9514,2471.7,2471.5,0.02]
[1751467460174,0.55,2471.2,2470.6,2.084]
[1751467460400,13.75310815,2471.2,2470.6,2.084]
[1751467460543,0.55,2470.6,2470.0,0.9918]
[1751467460744,0.55,2470.6,2470.1,2.084]
[1751467460969,13.20310815,2471.0,2470.1,2.084]
[1751467461177,10.0,2471.0,2470.1,2.084]
[1751467461575,0.55,2471.0,2470.1,2.084]
[1751467462246,13.20310815,2470.9,2470.1,2.084]
[1751467462584,1.37531082,2470.8,2470.1,2.084]
[1751467462990,0.55,2471.0,2470.1,2.084]
[1751467463163,10.9614,2471.1,2470.2,4.04817593]
[1751467463357,10.9614,2471.1,2470.3,0.9718]
[1751467464281,0.55,2471.0,2470.3,0.9718]
[1751467464484,13.20310815,2470.9,2470.3,0.9718]
[1751467464688,1.37531082,2470.8,2470.3,0.9718]
[1751467464986,14.16450815,2470.6,2470.1,2.084]
[1751467465185,14.16450815,2470.6,2470.0,0.02]
[1751467465186,13.20310815,2470.3,2470.0,0.02]
[1751467465415,0.9614,2470.1,2470.0,0.02]
[1751467465558,0.9614,2470.1,2469.1,0.02]
[1751467465559,1.5114,2470.1,2469.2,2.084]
[1751467465760,13.20310815,2469.6,2469.2,2.084]
[1751467466097,13.20310815,2469.3,2469.1,0.02]
[1751467466399,0.55,2469.2,2469.1,0.02]
[1751467467402,0.55,2469.2,2468.6,0.02]
[1751467467403,10.55,2469.2,2468.6,0.02]
[1751467467612,1.1638,2469.1,2468.6,0.02]
[1751467468264,1.7138,2469.1,2468.6,0.02]
[1751467468465,3.30894632,2469.1,2468.6,0.02]
[1751467468694,3.30894632,2469.1,2468.2,0.02]
[1751467468695,0.8899,2468.7,2468.2,0.02]
[1751467468896,0.55,2468.4,2468.2,0.02]
[1751467469195,10.55,2468.4,2468.2,0.02]
[1751467469371,1.055,2468.3,2468.2,0.02]
[1751467470298,0.55,2468.5,2468.2,0.02]
[1751467470709,0.8899,2468.7,2468.2,0.02]
[1751467470876,0.2024,2468.7,2468.2,0.2224]
[1751467471895,0.2024,2468.7,2468.2,4.27382952]
[1751467472098,0.2024,2468.7,2468.2,0.2224]
[1751467472395,0.2024,2468.8,2468.2,0.95307455]
[1751467472598,0.2024,2468.8,2468.4,0.2024]
[1751467473015,0.2024,2468.8,2468.4,2.2884]
[1751467473175,8.06931082,2469.5,2468.5,0.8969]
[1751467473370,0.2024,2469.0,2468.5,1.0993]
[1751467473588,0.2024,2469.0,2468.5,2.22807301]
[1751467473976,0.55,2469.2,2468.5,0.8969]
[1751467474378,0.2024,2468.6,2468.5,0.8969]
[1751467474912,0.2024,2468.6,2468.4,2.086]
[1751467475409,11.471,2468.5,2468.2,0.02]
[1751467475598,2.17429405,2468.4,2468.2,0.02]
[1751467476207,0.55,2468.3,2468.2,0.02]
[1751467476908,10.55,2468.3,2468.2,0.02]
[1751467479508,11.5376,2468.3,2468.2,0.02]
[1751467479812,44.60153553,2468.2,2468.1,0.02]
[1751467480109,10.55,2467.9,2467.7,0.02]
[1751467480307,21.75594045,2467.8,2467.7,0.02]
[1751467480508,21.75594045,2467.8,2466.7,0.9427]
[1751467480509,0.55,2467.4,2466.7,0.02]
[1751467480707,0.55,2467.1,2466.7,0.02]
[1751467480909,0.55,2466.9,2466.7,0.02]
[1751467481563,10.55,2466.9,2466.7,0.02]
[1751467483326,53.48083492,2466.8,2466.0,0.01]
[1751467483535,45.53329927,2466.7,2466.0,0.01]
[1751467483831,47.97290414,2466.7,2466.0,0.01]
[1751467484129,43.91890487,2466.7,2466.0,0.01]
[1751467484420,54.74590414,2466.7,2466.0,0.01]
[1751467484625,24.74590414,2466.7,2466.0,0.01]
[1751467484800,50.69190487,2466.7,2466.0,0.01]
[1751467485002,13.91890487,2466.7,2466.0,0.01]
[1751467485421,43.91890487,2466.7,2466.0,0.01]
[1751467485737,47.97290414,2466.7,2466.0,0.01]
[1751467487037,43.91890487,2466.7,2466.0,0.01]